[Event "*** SCC Grand Prix: Titled Tuesday Blitz"]
[Site "Chess.com"]
[Date "2020.06.23"]
[Round "3"]
[White "Chuchofrio1"]
[Black "Mourinho_Jose"]
[Result "0-1"]
[WhiteElo "2223"]
[BlackElo "2490"]
[TimeControl "180+1"]
[EndTime "10:30:55 PDT"]
[Termination "Mourinho_Jose won by resignation"]

1. d4 {[%clk 0:03:00.9]} 1... d5 {[%clk 0:02:59.6]} 2. c4 {[%clk 0:03:00.6]}
2... e6 {[%clk 0:02:59.6]} 3. Nc3 {[%clk 0:02:59.6]} 3... Be7 {[%clk 0:02:59.6]}
4. Nf3 {[%clk 0:02:58.1]} 4... Nf6 {[%clk 0:02:59.4]} 5. Bg5 {[%clk 0:02:56.1]}
5... O-O {[%clk 0:02:59]} 6. e3 {[%clk 0:02:56.3]} 6... h6 {[%clk 0:02:58.9]} 7.
Bh4 {[%clk 0:02:55]} 7... Ne4 {[%clk 0:02:58.7]} 8. Bxe7 {[%clk 0:02:53.5]} 8...
Qxe7 {[%clk 0:02:59.6]} 9. Rc1 {[%clk 0:02:52.7]} 9... c6 {[%clk 0:02:59.7]} 10.
Bd3 {[%clk 0:02:52.5]} 10... Nxc3 {[%clk 0:02:59.8]} 11. Rxc3 {[%clk 0:02:52.5]}
11... dxc4 {[%clk 0:03:00.1]} 12. Bxc4 {[%clk 0:02:52.2]} 12... Nd7 {[%clk
0:02:59.9]} 13. O-O {[%clk 0:02:51.6]} 13... b6 {[%clk 0:03:00.2]} 14. Qe2
{[%clk 0:02:41.5]} 14... c5 {[%clk 0:02:58.2]} 15. Rd1 {[%clk 0:02:33.9]} 15...
Bb7 {[%clk 0:02:57]} 16. Ba6 {[%clk 0:02:17.6]} 16... Bxa6 {[%clk 0:02:26]} 17.
Qxa6 {[%clk 0:02:16.4]} 17... cxd4 {[%clk 0:02:26.1]} 18. Nxd4 {[%clk
0:02:15.2]} 18... Nc5 {[%clk 0:02:25.1]} 19. Qe2 {[%clk 0:02:14.5]} 19... a5
{[%clk 0:02:20.6]} 20. Rdc1 {[%clk 0:02:00.9]} 20... Qb7 {[%clk 0:02:16.9]} 21.
Qb5 {[%clk 0:01:58.8]} 21... Rab8 {[%clk 0:02:14]} 22. Nb3 {[%clk 0:01:57.4]}
22... Nxb3 {[%clk 0:02:03.5]} 23. Qxb3 {[%clk 0:01:57]} 23... b5 {[%clk
0:01:59.1]} 24. Rc7 {[%clk 0:01:55.3]} 24... Qe4 {[%clk 0:01:54.6]} 25. Qc2
{[%clk 0:01:51]} 25... Qd5 {[%clk 0:01:51.2]} 26. b3 {[%clk 0:01:47.8]} 26...
Rfd8 {[%clk 0:01:46.6]} 27. h3 {[%clk 0:01:46]} 27... b4 {[%clk 0:01:26.6]} 28.
Rc5 {[%clk 0:01:37.8]} 28... Qa8 {[%clk 0:01:25.7]} 29. Rd1 {[%clk 0:01:29.3]}
29... Rxd1+ {[%clk 0:01:19]} 30. Qxd1 {[%clk 0:01:29.3]} 30... Rd8 {[%clk
0:01:19.9]} 31. Qc2 {[%clk 0:01:29]} 31... Qa6 {[%clk 0:01:19.1]} 32. Rc7 {[%clk
0:01:18.6]} 32... Qd6 {[%clk 0:01:00.1]} 33. Rc5 {[%clk 0:00:55]} 33... Qd1+
{[%clk 0:00:29.4]} 34. Qxd1 {[%clk 0:00:46.5]} 34... Rxd1+ {[%clk 0:00:30.3]}
35. Kh2 {[%clk 0:00:46.3]} 35... Rd2 {[%clk 0:00:30.3]} 36. Rxa5 {[%clk
0:00:46.1]} 36... Rxf2 {[%clk 0:00:30.5]} 37. Ra4 {[%clk 0:00:46.1]} 37... Kh7
{[%clk 0:00:28.3]} 38. Rxb4 {[%clk 0:00:46]} 38... Rxa2 {[%clk 0:00:28.2]} 39.
Rb7 {[%clk 0:00:44.2]} 39... Kg6 {[%clk 0:00:28]} 40. Kg3 {[%clk 0:00:44.4]}
40... e5 {[%clk 0:00:19.5]} 41. b4 {[%clk 0:00:43.4]} 41... f6 {[%clk
0:00:19.3]} 42. b5 {[%clk 0:00:43.2]} 42... h5 {[%clk 0:00:19.7]} 43. b6 {[%clk
0:00:40.4]} 43... Rb2 {[%clk 0:00:19.8]} 44. Rb8 {[%clk 0:00:39.8]} 44... Kf5
{[%clk 0:00:18.1]} 45. h4 {[%clk 0:00:35.6]} 45... Rb3 {[%clk 0:00:15]} 46. Kf3
{[%clk 0:00:34.3]} 46... e4+ {[%clk 0:00:14.6]} 47. Kf2 {[%clk 0:00:33.9]} 47...
Kg4 {[%clk 0:00:12.6]} 48. Re8 {[%clk 0:00:19.2]} 48... Rb2+ {[%clk 0:00:10.6]}
49. Kf1 {[%clk 0:00:18.4]} 49... Rxb6 {[%clk 0:00:05.8]} 50. Rxe4+ {[%clk
0:00:17.9]} 50... Kg3 {[%clk 0:00:06.4]} 51. Re7 {[%clk 0:00:16.7]} 51... Rb1+
{[%clk 0:00:06.3]} 52. Ke2 {[%clk 0:00:17]} 52... Rb2+ {[%clk 0:00:04.7]} 53.
Kd3 {[%clk 0:00:17]} 53... g5 {[%clk 0:00:04.3]} 54. hxg5 {[%clk 0:00:15.8]}
54... fxg5 {[%clk 0:00:05.2]} 55. Rg7 {[%clk 0:00:14.9]} 55... g4 {[%clk
0:00:05.2]} 56. e4 {[%clk 0:00:13.9]} 56... Rxg2 {[%clk 0:00:04.5]} 57. e5
{[%clk 0:00:13]} 57... h4 {[%clk 0:00:04.7]} 58. e6 {[%clk 0:00:12.9]} 58... Rg1
{[%clk 0:00:04.5]} 59. Kd2 {[%clk 0:00:12.7]} 59... Ra1 {[%clk 0:00:04.2]} 60.
e7 {[%clk 0:00:12.3]} 60... Ra8 {[%clk 0:00:04.7]} 61. Rf7 {[%clk 0:00:11.8]}
61... Re8 {[%clk 0:00:05.2]} 62. Ke3 {[%clk 0:00:11.2]} 62... Kh2 {[%clk
0:00:04.4]} 63. Rh7 {[%clk 0:00:08.6]} 63... h3 {[%clk 0:00:04.2]} 64. Kf4
{[%clk 0:00:07.2]} 64... g3 {[%clk 0:00:04.6]} 65. Rg7 {[%clk 0:00:05.8]} 65...
g2 {[%clk 0:00:04.3]} 66. Kf5 {[%clk 0:00:05.4]} 66... g1=Q {[%clk 0:00:04.2]}
67. Rxg1 {[%clk 0:00:05.2]} 67... Kxg1 {[%clk 0:00:05.1]} 68. Kf6 {[%clk
0:00:05.9]} 68... h2 {[%clk 0:00:05.1]} 69. Kf7 {[%clk 0:00:06.8]} 69... Rxe7+
{[%clk 0:00:05.7]} 70. Kxe7 {[%clk 0:00:06.9]} 70... h1=Q {[%clk 0:00:06.6]} 71.
Kd6 {[%clk 0:00:07.8]} 71... Qf3 {[%clk 0:00:07.2]} 72. Ke5 {[%clk 0:00:07.4]}
72... Qf2 {[%clk 0:00:08.1]} 73. Ke4 {[%clk 0:00:07.5]} 73... Kg2 {[%clk
0:00:09]} 74. Kd3 {[%clk 0:00:07.4]} 74... Qf3+ {[%clk 0:00:09.9]} 75. Kd2
{[%clk 0:00:07.4]} 75... Qe4 {[%clk 0:00:09.9]} 76. Kc3 {[%clk 0:00:06.5]} 76...
Qd5 {[%clk 0:00:10]} 77. Kc2 {[%clk 0:00:06.4]} 0-1

[Event "*** SCC Grand Prix: Titled Tuesday Blitz"]
[Site "Chess.com"]
[Date "2020.06.23"]
[Round "3"]
[White "RaunakSadhwani2005"]
[Black "Evgeny_Ermakov1965"]
[Result "1-0"]
[WhiteElo "2895"]
[BlackElo "2656"]
[TimeControl "180+1"]
[EndTime "10:31:02 PDT"]
[Termination "RaunakSadhwani2005 won on time"]

1. c4 {[%clk 0:02:59]} 1... e5 {[%clk 0:02:58.7]} 2. Nc3 {[%clk 0:02:59]} 2...
Bb4 {[%clk 0:02:56]} 3. Nd5 {[%clk 0:02:58.4]} 3... Nc6 {[%clk 0:02:56.2]} 4.
Nf3 {[%clk 0:02:51.3]} 4... e4 {[%clk 0:02:53.4]} 5. Nxb4 {[%clk 0:02:49.9]}
5... Nxb4 {[%clk 0:02:53.4]} 6. Nd4 {[%clk 0:02:50.4]} 6... Nf6 {[%clk
0:02:51.8]} 7. g3 {[%clk 0:02:47]} 7... c5 {[%clk 0:02:48]} 8. Nc2 {[%clk
0:02:44.7]} 8... Nxc2+ {[%clk 0:02:47.6]} 9. Qxc2 {[%clk 0:02:45.6]} 9... O-O
{[%clk 0:02:45.9]} 10. Bg2 {[%clk 0:02:45.3]} 10... d5 {[%clk 0:02:42.6]} 11.
cxd5 {[%clk 0:02:26.8]} 11... Qxd5 {[%clk 0:02:43.5]} 12. b3 {[%clk 0:02:23.4]}
12... Bf5 {[%clk 0:02:36.9]} 13. Qc4 {[%clk 0:02:17.4]} 13... Qxc4 {[%clk
0:02:34.3]} 14. bxc4 {[%clk 0:02:17.4]} 14... Rfe8 {[%clk 0:02:35.2]} 15. Bb2
{[%clk 0:02:14.3]} 15... Rad8 {[%clk 0:02:34.1]} 16. Rc1 {[%clk 0:01:58]} 16...
a6 {[%clk 0:02:33.7]} 17. h3 {[%clk 0:01:53.7]} 17... h5 {[%clk 0:02:30.6]} 18.
a4 {[%clk 0:01:43.9]} 18... Re6 {[%clk 0:02:18.3]} 19. a5 {[%clk 0:01:25.6]}
19... Red6 {[%clk 0:02:13.5]} 20. Bc3 {[%clk 0:01:18.1]} 20... Ne8 {[%clk
0:02:08.3]} 21. g4 {[%clk 0:01:17.3]} 21... Bh7 {[%clk 0:01:56.3]} 22. f3 {[%clk
0:01:10.3]} 22... exf3 {[%clk 0:01:50.8]} 23. Bxf3 {[%clk 0:01:11.2]} 23... Nc7
{[%clk 0:01:45.6]} 24. gxh5 {[%clk 0:01:07.4]} 24... Ne6 {[%clk 0:01:45.7]} 25.
Bxb7 {[%clk 0:01:00.9]} 25... Nf4 {[%clk 0:01:43.6]} 26. Bf3 {[%clk 0:00:43]}
26... Re8 {[%clk 0:01:38.4]} 27. Kf2 {[%clk 0:00:41.3]} 27... Bf5 {[%clk
0:01:35.1]} 28. h4 {[%clk 0:00:31.5]} 28... Rde6 {[%clk 0:01:28.3]} 29. Rce1
{[%clk 0:00:25.5]} 29... Be4 {[%clk 0:01:22.4]} 30. Rh2 {[%clk 0:00:24.2]} 30...
Bxf3 {[%clk 0:01:19]} 31. Kxf3 {[%clk 0:00:25.1]} 31... Nxh5 {[%clk 0:01:19.7]}
32. Rg1 {[%clk 0:00:19]} 32... f6 {[%clk 0:01:16.9]} 33. e3 {[%clk 0:00:18]}
33... Re4 {[%clk 0:01:14.7]} 34. Rb1 {[%clk 0:00:18]} 34... Rxc4 {[%clk
0:01:11.2]} 35. Rb6 {[%clk 0:00:18.4]} 35... Ra8 {[%clk 0:01:07.9]} 36. Rb7
{[%clk 0:00:18.8]} 36... f5 {[%clk 0:01:02.2]} 37. Rh1 {[%clk 0:00:16.2]} 37...
Rg4 {[%clk 0:00:58.3]} 38. Rc7 {[%clk 0:00:14.4]} 38... Rg3+ {[%clk 0:00:54.3]}
39. Kf2 {[%clk 0:00:14.4]} 39... Re8 {[%clk 0:00:48.3]} 40. Rxc5 {[%clk
0:00:12.6]} 40... Rf8 {[%clk 0:00:42]} 41. Rg1 {[%clk 0:00:11.3]} 41... Rxg1
{[%clk 0:00:40.1]} 42. Kxg1 {[%clk 0:00:12.2]} 42... Ng3 {[%clk 0:00:39.9]} 43.
Rc7 {[%clk 0:00:09.9]} 43... Rf7 {[%clk 0:00:33.8]} 44. Rc6 {[%clk 0:00:09.9]}
44... f4 {[%clk 0:00:29.7]} 45. exf4 {[%clk 0:00:05.9]} 45... Ne2+ {[%clk
0:00:26.3]} 46. Kf2 {[%clk 0:00:05.6]} 46... Nxc3 {[%clk 0:00:27.2]} 47. dxc3
{[%clk 0:00:05.1]} 47... Rxf4+ {[%clk 0:00:28.1]} 48. Ke3 {[%clk 0:00:06]} 48...
Rxh4 {[%clk 0:00:25.1]} 49. Rxa6 {[%clk 0:00:06.5]} 49... Rh3+ {[%clk
0:00:20.5]} 50. Kd2 {[%clk 0:00:06.6]} 50... Rh2+ {[%clk 0:00:19.2]} 51. Kd3
{[%clk 0:00:07]} 51... g5 {[%clk 0:00:19.3]} 52. Rg6+ {[%clk 0:00:06.4]} 52...
Kf7 {[%clk 0:00:16.4]} 53. Rxg5 {[%clk 0:00:07.3]} 53... Ke6 {[%clk 0:00:16]}
54. Rc5 {[%clk 0:00:05.8]} 54... Rh1 {[%clk 0:00:13.7]} 55. Kc4 {[%clk
0:00:05.9]} 55... Kd6 {[%clk 0:00:13.1]} 56. Rc8 {[%clk 0:00:05.2]} 56... Kd7
{[%clk 0:00:10.6]} 57. Rc5 {[%clk 0:00:05.5]} 57... Kd6 {[%clk 0:00:09]} 58. Rg5
{[%clk 0:00:04.3]} 58... Ra1 {[%clk 0:00:08.7]} 59. Kb5 {[%clk 0:00:03.5]} 59...
Rb1+ {[%clk 0:00:06.7]} 60. Ka6 {[%clk 0:00:03.9]} 60... Kc6 {[%clk 0:00:06.4]}
61. Rg6+ {[%clk 0:00:04]} 61... Kc7 {[%clk 0:00:05.5]} 62. Rg7+ {[%clk
0:00:04.1]} 62... Kc6 {[%clk 0:00:05.5]} 63. Ka7 {[%clk 0:00:04.1]} 63... Ra1
{[%clk 0:00:04.4]} 64. a6 {[%clk 0:00:03.5]} 64... Ra3 {[%clk 0:00:05.3]} 65.
Rg6+ {[%clk 0:00:03.3]} 65... Kc7 {[%clk 0:00:04.7]} 66. Rg3 {[%clk 0:00:03.2]}
66... Rb3 {[%clk 0:00:04.1]} 67. Rh3 {[%clk 0:00:02.2]} 67... Ra3 {[%clk
0:00:05]} 68. Rh7+ {[%clk 0:00:02.1]} 68... Kc6 {[%clk 0:00:05.2]} 69. Rh6+
{[%clk 0:00:02.2]} 69... Kc7 {[%clk 0:00:01.7]} 70. Rh7+ {[%clk 0:00:02.6]}
70... Kc6 {[%clk 0:00:00.6]} 71. Kb8 {[%clk 0:00:02.9]} 1-0

[Event "*** SCC Grand Prix: Titled Tuesday Blitz"]
[Site "Chess.com"]
[Date "2020.06.23"]
[Round "3"]
[White "kingmonkey2006"]
[Black "AradNazari"]
[Result "1-0"]
[WhiteElo "2578"]
[BlackElo "2389"]
[TimeControl "180+1"]
[EndTime "10:31:34 PDT"]
[Termination "kingmonkey2006 won by checkmate"]

1. e4 {[%clk 0:03:00.8]} 1... e6 {[%clk 0:02:58]} 2. d4 {[%clk 0:03:00.7]} 2...
d5 {[%clk 0:02:57.9]} 3. Nd2 {[%clk 0:03:01.2]} 3... c6 {[%clk 0:02:57.5]} 4.
Ngf3 {[%clk 0:03:00.6]} 4... Nf6 {[%clk 0:02:57.7]} 5. e5 {[%clk 0:02:58.8]}
5... Nfd7 {[%clk 0:02:58]} 6. c3 {[%clk 0:02:59.6]} 6... c5 {[%clk 0:02:57.3]}
7. Bd3 {[%clk 0:02:59.9]} 7... Nc6 {[%clk 0:02:57.6]} 8. O-O {[%clk 0:02:59.4]}
8... Be7 {[%clk 0:02:58]} 9. Re1 {[%clk 0:02:56.1]} 9... Nb6 {[%clk 0:02:57.5]}
10. Nf1 {[%clk 0:02:50.2]} 10... h6 {[%clk 0:02:56.9]} 11. a4 {[%clk 0:02:46.6]}
11... cxd4 {[%clk 0:02:55.7]} 12. Nxd4 {[%clk 0:02:37.5]} 12... Bd7 {[%clk
0:02:48.7]} 13. f4 {[%clk 0:02:35.2]} 13... Nxd4 {[%clk 0:02:46.2]} 14. cxd4
{[%clk 0:02:35.3]} 14... O-O {[%clk 0:02:39]} 15. b3 {[%clk 0:02:22.5]} 15...
Nc8 {[%clk 0:02:30.2]} 16. Ng3 {[%clk 0:02:19.8]} 16... Bh4 {[%clk 0:02:29.9]}
17. Qg4 {[%clk 0:02:15.6]} 17... Bxg3 {[%clk 0:02:29.5]} 18. hxg3 {[%clk
0:02:16.5]} 18... Ne7 {[%clk 0:02:29.9]} 19. Qf3 {[%clk 0:02:09.8]} 19... Nf5
{[%clk 0:02:28.7]} 20. Ba3 {[%clk 0:01:53.1]} 20... Re8 {[%clk 0:02:22.5]} 21.
Qf2 {[%clk 0:01:08.5]} 21... Qb6 {[%clk 0:02:17.5]} 22. g4 {[%clk 0:00:52.4]}
22... Nxd4 {[%clk 0:01:55.1]} 23. a5 {[%clk 0:00:51.9]} 23... Nf3+ {[%clk
0:01:33.6]} 24. gxf3 {[%clk 0:00:50.5]} 24... Qxb3 {[%clk 0:01:34.1]} 25. Qd4
{[%clk 0:00:41.3]} 25... Qa4 {[%clk 0:01:27.2]} 26. Qxa4 {[%clk 0:00:39.6]}
26... Bxa4 {[%clk 0:01:28.1]} 27. Rab1 {[%clk 0:00:37.9]} 27... Bc6 {[%clk
0:01:27.9]} 28. Rec1 {[%clk 0:00:36]} 28... Rec8 {[%clk 0:01:24.6]} 29. Kf2
{[%clk 0:00:33.7]} 29... Kh8 {[%clk 0:01:14.9]} 30. g5 {[%clk 0:00:30.1]} 30...
hxg5 {[%clk 0:01:09.5]} 31. fxg5 {[%clk 0:00:31]} 31... g6 {[%clk 0:01:07.5]}
32. Be7 {[%clk 0:00:29.6]} 32... Kg8 {[%clk 0:01:06.4]} 33. Bf6 {[%clk
0:00:28.5]} 33... Kf8 {[%clk 0:01:04.9]} 34. Rh1 {[%clk 0:00:29.4]} 34... Ke8
{[%clk 0:01:05]} 35. Rh7 {[%clk 0:00:28.3]} 35... d4 {[%clk 0:00:58.9]} 36. Rg7
{[%clk 0:00:24.9]} 36... a6 {[%clk 0:00:57.1]} 37. Rh1 {[%clk 0:00:24.8]} 37...
Bd5 {[%clk 0:00:57.4]} 38. Rh8+ {[%clk 0:00:24.2]} 38... Kd7 {[%clk 0:00:57.8]}
39. Rxf7+ {[%clk 0:00:25.1]} 39... Kc6 {[%clk 0:00:58.3]} 40. Rxc8+ {[%clk
0:00:25.1]} 40... Rxc8 {[%clk 0:00:59.2]} 41. Bxg6 {[%clk 0:00:25.6]} 41... Kb5
{[%clk 0:00:58.4]} 42. Bd3+ {[%clk 0:00:25.6]} 42... Kxa5 {[%clk 0:00:56.7]} 43.
g6 {[%clk 0:00:26]} 43... Rc3 {[%clk 0:00:56]} 44. g7 {[%clk 0:00:26.5]} 44...
Rxd3 {[%clk 0:00:56]} 45. g8=Q {[%clk 0:00:26.5]} 45... Rxf3+ {[%clk 0:00:56.4]}
46. Ke1 {[%clk 0:00:25.9]} 46... Re3+ {[%clk 0:00:55.2]} 47. Kd2 {[%clk
0:00:25.9]} 47... b5 {[%clk 0:00:43.2]} 48. Qd8+ {[%clk 0:00:23.4]} 48... Ka4
{[%clk 0:00:43.5]} 49. Qb6 {[%clk 0:00:22.6]} 49... Bc4 {[%clk 0:00:40.2]} 50.
Qxd4 {[%clk 0:00:20.8]} 50... Rh3 {[%clk 0:00:38.1]} 51. Qa1+ {[%clk 0:00:20.3]}
51... Kb3 {[%clk 0:00:37.5]} 52. Qb1+ {[%clk 0:00:19.8]} 52... Ka4 {[%clk
0:00:36.4]} 53. Ra7 {[%clk 0:00:19.2]} 53... Rh2+ {[%clk 0:00:33.3]} 54. Ke3
{[%clk 0:00:17.6]} 54... Rh3+ {[%clk 0:00:33.3]} 55. Kd4 {[%clk 0:00:17.5]}
55... a5 {[%clk 0:00:26.6]} 56. Qa1+ {[%clk 0:00:16.1]} 56... Kb3 {[%clk
0:00:26.9]} 57. Rxa5 {[%clk 0:00:13.4]} 57... Rd3+ {[%clk 0:00:26.7]} 58. Ke4
{[%clk 0:00:13.3]} 58... Kc2 {[%clk 0:00:26.7]} 59. Bg5 {[%clk 0:00:11.4]} 59...
Rd1 {[%clk 0:00:14]} 60. Qa3 {[%clk 0:00:06]} 60... Bd5+ {[%clk 0:00:10.9]} 61.
Kf4 {[%clk 0:00:06]} 61... Rf1+ {[%clk 0:00:11.3]} 62. Ke3 {[%clk 0:00:06.3]}
62... Rf3+ {[%clk 0:00:10.7]} 63. Ke2 {[%clk 0:00:07.1]} 63... Rxa3 {[%clk
0:00:11.1]} 64. Rxa3 {[%clk 0:00:07.5]} 64... b4 {[%clk 0:00:11.8]} 65. Ra5
{[%clk 0:00:04.8]} 65... b3 {[%clk 0:00:09.8]} 66. Rc5+ {[%clk 0:00:05.2]} 66...
Kb1 {[%clk 0:00:08.8]} 67. Be3 {[%clk 0:00:05]} 67... Be4 {[%clk 0:00:08.1]} 68.
Bd4 {[%clk 0:00:05.2]} 68... Bc2 {[%clk 0:00:06.3]} 69. Kd2 {[%clk 0:00:05.6]}
69... Ka2 {[%clk 0:00:05.9]} 70. Rxc2+ {[%clk 0:00:05.1]} 70... bxc2 {[%clk
0:00:05.6]} 71. Kxc2 {[%clk 0:00:06]} 71... Ka3 {[%clk 0:00:06.2]} 72. Kc3
{[%clk 0:00:06.9]} 72... Ka4 {[%clk 0:00:06.8]} 73. Kc4 {[%clk 0:00:07.8]} 73...
Ka5 {[%clk 0:00:07.4]} 74. Kc5 {[%clk 0:00:08.7]} 74... Ka4 {[%clk 0:00:08.3]}
75. Kd6 {[%clk 0:00:09.6]} 75... Kb3 {[%clk 0:00:09.2]} 76. Kxe6 {[%clk
0:00:10.3]} 76... Kc4 {[%clk 0:00:10.1]} 77. Bb6 {[%clk 0:00:10.9]} 77... Kb5
{[%clk 0:00:10.5]} 78. Bd8 {[%clk 0:00:11.8]} 78... Kc6 {[%clk 0:00:11.4]} 79.
Kf6 {[%clk 0:00:12]} 79... Kd7 {[%clk 0:00:12.3]} 80. Ba5 {[%clk 0:00:12.8]}
80... Ke8 {[%clk 0:00:13.2]} 81. e6 {[%clk 0:00:13.7]} 81... Kf8 {[%clk
0:00:13.6]} 82. e7+ {[%clk 0:00:14.5]} 82... Ke8 {[%clk 0:00:14.5]} 83. Bb4
{[%clk 0:00:15.4]} 83... Kd7 {[%clk 0:00:15.2]} 84. Kf7 {[%clk 0:00:16.3]} 84...
Kc7 {[%clk 0:00:15.3]} 85. e8=Q {[%clk 0:00:17.2]} 85... Kb7 {[%clk 0:00:16.2]}
86. Bc3 {[%clk 0:00:17.6]} 86... Kc7 {[%clk 0:00:16.3]} 87. Be5+ {[%clk
0:00:17]} 87... Kb7 {[%clk 0:00:17.2]} 88. Qb5+ {[%clk 0:00:16.8]} 88... Kc8
{[%clk 0:00:16.3]} 89. Qc6+ {[%clk 0:00:15.4]} 89... Kd8 {[%clk 0:00:15.8]} 90.
Bf6# {[%clk 0:00:16.1]} 1-0